bitfinex-derivatives/quotes_SOLF0:USTF0_20250507
["timestamp","ask_amount","ask_price","bid_price","bid_amount"]
[1746620639778,6.779,147.52,147.51,28.54]
[1746620642880,6.7788,147.53,147.51,28.54]
[1746620644483,6.779,147.52,147.51,28.54]
[1746620644785,42.092,147.59,147.51,35.3194]
[1746620645183,6.779,147.52,147.51,28.54]
[1746620645684,6.7788,147.53,147.51,28.54]
[1746620645877,28.54,147.59,147.51,28.54]
[1746620646277,6.777,147.57,147.51,28.54]
[1746620646477,2.086,147.61,147.51,28.54]
[1746620646777,2.086,147.61,147.56,6.777]
[1746620646978,6.7761,147.59,147.56,6.777]
[1746620647178,6.7761,147.59,147.55,28.54]
[1746620647378,28.54,147.65,147.55,28.54]
[1746620648279,6.7757,147.6,147.57,6.7765]
[1746620648781,6.776,147.59,147.57,6.7765]
[1746620649781,6.7764,147.58,147.55,28.54]
[1746620650082,28.54,147.65,147.55,28.54]
[1746620650585,6.7771,147.57,147.55,28.54]
[1746620650881,13.5472,147.64,147.55,28.54]
[1746620651383,6.7772,147.56,147.55,28.54]
[1746620651985,6.7769,147.57,147.55,28.54]
[1746620652181,13.5472,147.64,147.55,28.54]
[1746620652685,13.5472,147.64,147.56,6.7771]
[1746620653779,28.54,147.65,147.57,6.7766]
[1746620654084,28.54,147.65,147.55,28.54]
[1746620654284,6.7772,147.56,147.55,28.54]
[1746620654882,6.7769,147.57,147.55,28.54]
[1746620655079,28.54,147.65,147.55,28.54]
[1746620655282,13.548,147.63,147.55,28.54]
[1746620655482,6.7772,147.56,147.55,28.54]
[1746620656682,6.7772,147.56,147.49,13.17577108]
[1746620656683,6.7778,147.55,147.52,28.54]
[1746620657078,6.7778,147.55,147.52,35.3188]
[1746620657273,6.7778,147.55,147.52,28.54]
[1746620658388,6.1387,147.6,147.52,28.54]
[1746620660087,4.0809,147.6,147.52,28.54]
[1746620660590,6.7763,147.58,147.52,28.54]
[1746620661089,6.7763,147.58,147.56,6.777]
[1746620661287,6.7763,147.58,147.56,35.317]
[1746620661488,6.776,147.59,147.56,28.54]
[1746620661690,28.54,147.64,147.56,28.54]
[1746620661884,6.7767,147.57,147.56,28.54]
[1746620664390,6.7765,147.58,147.56,28.54]
[1746620665892,6.7765,147.58,147.56,35.3171]
[1746620666493,28.54,147.64,147.56,28.54]
[1746620667790,28.54,147.64,147.57,6.7765]
[1746620668693,6.7759,147.59,147.57,6.7765]
[1746620669090,28.54,147.64,147.56,28.54]
[1746620670394,6.7767,147.57,147.56,28.54]
[1746620675100,6.7783,147.54,147.53,28.58]
[1746620677796,6.7798,147.51,147.5,28.58]
[1746620678603,2.1562,147.59,147.5,28.58]
[1746620679906,6.778,147.55,147.5,28.58]
[1746620680202,6.7774,147.56,147.5,28.58]
[1746620681304,6.7774,147.56,147.53,6.7783]
[1746620681798,6.778,147.55,147.52,6.7788]
[1746620681998,6.778,147.55,147.5,28.58]
[1746620682303,2.1562,147.59,147.51,6.7791]
[1746620682501,2.1562,147.59,147.5,28.58]
[1746620683002,6.7789,147.53,147.51,6.7794]
[1746620683305,2.1562,147.59,147.5,28.58]
[1746620683504,6.7785,147.54,147.5,28.58]
[1746620684106,6.7786,147.53,147.51,6.7792]
[1746620687008,6.779,147.52,147.5,35.3598]
[1746620687409,2.1562,147.59,147.5,28.58]
[1746620687902,13.5529,147.58,147.5,28.58]
[1746620688297,6.7795,147.51,147.5,28.58]
[1746620689306,6.7793,147.52,147.5,28.58]
[1746620689611,6.7793,147.52,147.5,35.3597]
[1746620690312,6.7788,147.53,147.51,6.7795]
[1746620691222,6.7783,147.54,147.5,28.58]
[1746620691712,6.7783,147.54,147.51,6.7791]
[1746620692413,6.7788,147.53,147.51,6.7791]
[1746620692912,6.7788,147.53,147.5,35.3597]
[1746620693514,6.779,147.52,147.5,35.3597]
[1746620694008,6.779,147.52,147.5,28.58]
[1746620694213,6.7795,147.51,147.5,28.58]
[1746620697409,6.7808,147.49,147.46,6.7817]
[1746620697615,6.7808,147.49,147.47,28.58]
[1746620698315,6.7808,147.49,147.47,35.3613]
[1746620703322,6.7802,147.5,147.47,35.3613]
[1746620704330,6.7802,147.5,147.48,6.7808]
[1746620707230,6.7796,147.51,147.49,6.7804]
[1746620707531,30.6536,147.55,147.47,28.58]
[1746620707929,6.7791,147.52,147.49,6.7802]
[1746620711130,30.6536,147.55,147.48,6.7807]
[1746620711732,30.6536,147.55,147.47,28.58]
[1746620712031,6.7797,147.51,147.47,28.58]
[1746620712432,6.7797,147.51,147.48,6.7805]
[1746620712732,30.6536,147.55,147.47,28.58]
[1746620714035,6.7804,147.49,147.47,35.3611]
[1746620714332,30.6536,147.55,147.47,28.58]
[1746620715132,2.0736,147.55,147.47,28.58]
[1746620715731,6.7797,147.51,147.49,6.7802]
[1746620717234,6.78,147.5,147.48,6.7807]
[1746620718130,2.0736,147.55,147.47,28.58]
[1746620718340,6.7796,147.51,147.49,6.7804]
[1746620719337,6.7796,147.51,147.48,6.7806]
[1746620721040,6.7796,147.51,147.49,6.7803]
[1746620721241,2.0736,147.55,147.47,28.58]
[1746620721943,6.779,147.53,147.5,6.7799]
[1746620722139,6.779,147.53,147.51,28.62]
[1746620722939,6.779,147.53,147.51,35.3993]
[1746620724746,6.7783,147.54,147.52,6.779]
[1746620725247,6.7783,147.54,147.51,28.62]
[1746620725446,6.7787,147.53,147.51,35.3992]
[1746620726451,2.0789,147.6,147.53,6.7786]
[1746620726839,2.0789,147.6,147.51,28.62]
[1746620727044,15.25167103,147.6,147.48,28.62]
[1746620727445,6.7804,147.49,147.48,28.62]
[1746620730249,6.7818,147.46,147.45,28.62]
[1746620731049,2.1071,147.51,147.41,585.72]
[1746620731050,2.1071,147.51,147.42,28.62]
[1746620731251,15.27987103,147.51,147.42,28.62]
[1746620731548,6.7832,147.43,147.42,28.62]
[1746620733150,2.1739,147.47,147.42,28.62]
[1746620733545,2.0081,147.49,147.42,28.62]
[1746620733951,6.782,147.46,147.43,6.7828]
[1746620734850,6.7823,147.45,147.43,6.7828]
[1746620737652,2.0081,147.49,147.42,28.62]
[1746620738851,6.7832,147.43,147.42,28.62]
[1746620739050,28.64,147.47,147.39,28.64]
[1746620739353,6.7844,147.41,147.39,28.64]
[1746620739951,4.1363,147.46,147.35,2.181]
[1746620740253,4.1363,147.46,147.38,28.64]
[1746620740849,4.1363,147.46,147.39,6.7848]
[1746620741661,6.7842,147.41,147.39,6.7848]
[1746620743356,6.7842,147.41,147.38,35.4253]
[1746620743657,28.64,147.43,147.35,28.64]
[1746620743857,2.1846,147.42,147.34,28.64]
[1746620744048,6.7857,147.38,147.34,28.64]
[1746620744456,6.7857,147.38,147.35,6.7868]
[1746620744755,6.7859,147.37,147.34,28.64]
[1746620745257,6.7859,147.37,147.34,35.4271]
[1746620747761,2.1846,147.42,147.34,28.64]
[1746620748152,32.7963,147.46,147.34,28.64]
[1746620748352,6.7845,147.41,147.34,30.666]
[1746620748559,6.7845,147.41,147.35,2.0794]
[1746620749258,6.7845,147.41,147.38,6.7852]
[1746620749462,6.7838,147.42,147.39,28.66]
[1746620749758,32.7963,147.46,147.39,28.66]
[1746620750258,6.7842,147.41,147.39,28.66]
[1746620750759,6.7845,147.4,147.39,28.66]
[1746620752257,6.7866,147.36,147.35,28.66]
[1746620753263,6.7861,147.37,147.35,28.66]
[1746620754260,6.7864,147.36,147.35,28.66]
[1746620757365,6.788,147.33,147.32,28.66]
[1746620757866,6.7875,147.34,147.32,28.66]
[1746620760067,6.7878,147.33,147.32,28.66]
[1746620761465,6.7875,147.34,147.32,28.66]
[1746620762066,6.7878,147.33,147.32,28.66]
[1746620762465,6.7875,147.34,147.32,28.66]
[1746620763368,6.7875,147.34,147.32,35.4482]
[1746620763563,6.787,147.35,147.32,35.4482]
[1746620763766,4.1989,147.4,147.32,28.66]
[1746620764365,6.7862,147.37,147.34,6.7871]
[1746620769771,6.7864,147.36,147.34,6.7871]
[1746620770265,6.7862,147.37,147.34,6.7871]
[1746620771278,1.987,147.41,147.32,28.66]
[1746620772168,6.7853,147.39,147.36,6.7862]
[1746620772366,6.7853,147.39,147.37,28.72]
[1746620773368,6.7848,147.4,147.37,35.5059]
[1746620773568,4.2202,147.44,147.37,28.72]
[1746620774074,6.784,147.42,147.37,28.72]
[1746620774667,6.784,147.42,147.38,6.7851]
[1746620775173,6.7842,147.41,147.38,6.7851]
[1746620776272,6.7842,147.41,147.37,35.5057]
[1746620776478,6.7846,147.4,147.37,35.5057]
[1746620776767,2.0746,147.44,147.37,28.72]
[1746620777163,30.7946,147.44,147.37,28.72]
[1746620777666,6.7855,147.38,147.37,28.72]
[1746620782781,2.0175,147.42,147.35,28.72]
[1746620782973,2.0175,147.42,147.34,28.72]
[1746620783173,6.7867,147.36,147.34,28.72]
[1746620786284,6.7863,147.37,147.34,35.5072]
[1746620786782,6.7852,147.39,147.36,6.7861]
[1746620788185,6.7848,147.4,147.37,6.7857]
[1746620790385,6.785,147.39,147.37,6.7857]
[1746620790791,6.785,147.39,147.34,28.72]
[1746620790792,6.785,147.39,147.36,6.7861]
[1746620793298,6.7855,147.38,147.35,6.7866]
[1746620794297,6.7855,147.38,147.36,6.7864]
[1746620794493,6.7855,147.38,147.34,28.72]
[1746620794798,6.7855,147.38,147.35,6.7866]
[1746620796798,6.7855,147.38,147.36,6.7863]
[1746620802503,6.7852,147.39,147.37,6.7859]
[1746620802708,6.7852,147.39,147.34,28.72]
[1746620803307,6.7852,147.39,147.36,6.7862]
[1746620804003,6.7849,147.4,147.34,28.72]
[1746620805003,6.7849,147.4,147.37,6.7857]
[1746620806206,6.7849,147.4,147.38,28.86]
[1746620806706,6.785,147.39,147.38,28.86]
[1746620811612,6.7858,147.38,147.36,28.86]
[1746620812206,6.7854,147.39,147.36,35.6461]
[1746620813513,6.7856,147.38,147.36,28.86]
[1746620814512,6.7856,147.38,147.36,35.6464]
[1746620816214,6.7853,147.39,147.36,35.6464]
[1746620818019,6.7847,147.4,147.37,6.7859]
[1746620819610,6.785,147.39,147.36,35.6462]
[1746620819810,2.0175,147.42,147.36,28.86]
[1746620820819,6.7856,147.38,147.36,28.86]
[1746620823023,6.7856,147.38,147.36,35.6463]
[1746620824122,6.7849,147.4,147.37,6.7859]
[1746620824725,2.0175,147.42,147.37,6.7859]
[1746620825524,6.7848,147.4,147.37,6.7859]
[1746620826123,6.7851,147.39,147.37,6.7859]
[1746620826317,6.7851,147.39,147.36,35.6462]
[1746620826925,2.0175,147.42,147.36,28.86]
[1746620827122,15.5851,147.42,147.36,28.86]
[1746620827425,6.7859,147.37,147.36,28.86]
[1746620827818,15.5851,147.42,147.33,6.7875]
[1746620827819,15.5851,147.42,147.33,35.4675]
[1746620828025,13.5684,147.41,147.33,28.68]
[1746620828424,6.787,147.35,147.33,28.68]
[1746620828620,6.787,147.35,147.33,35.4675]
[1746620829730,6.787,147.35,147.33,28.68]
[1746620831528,6.7873,147.34,147.33,28.68]
[1746620831931,2.0593,147.39,147.33,28.68]
[1746620832127,1.9852,147.38,147.33,28.68]
[1746620832326,6.7871,147.35,147.33,28.68]
[1746620833630,6.7866,147.36,147.33,35.4676]
[1746620835928,6.7869,147.35,147.33,28.68]
[1746620836327,1.9852,147.38,147.33,28.68]
[1746620836536,6.7873,147.34,147.33,28.68]
[1746620841640,6.7887,147.31,147.3,28.68]
[1746620841935,28.68,147.36,147.3,28.68]
[1746620842140,6.7884,147.32,147.27,28.68]
[1746620842638,6.7884,147.32,147.28,6.7898]
[1746620842838,6.7884,147.32,147.27,28.68]
[1746620843041,6.7884,147.32,147.29,6.7895]
[1746620847744,6.7888,147.31,147.28,6.7899]
[1746620847945,28.68,147.36,147.27,28.68]
[1746620848348,6.7893,147.3,147.27,35.4703]
[1746620849144,6.7896,147.29,147.27,35.4703]
[1746620849343,6.7896,147.29,147.27,28.68]
[1746620849750,6.7901,147.28,147.27,28.68]
[1746620850142,28.7,147.32,147.24,28.7]
[1746620850447,6.7913,147.26,147.24,28.7]
[1746620851151,6.7915,147.25,147.24,28.7]
[1746620851648,6.2616,147.31,147.21,35.4931]
[1746620852048,6.7917,147.25,147.21,35.4931]
[1746620852447,6.7922,147.24,147.21,28.7]
[1746620852743,6.2616,147.31,147.21,28.7]
[1746620853649,6.7921,147.24,147.21,28.7]
[1746620854050,6.2616,147.31,147.21,28.7]
[1746620854253,6.7917,147.25,147.21,28.7]
[1746620854753,6.7917,147.25,147.21,35.4932]
[1746620856053,6.2616,147.31,147.21,35.4932]
[1746620856054,6.792,147.24,147.21,35.4932]
[1746620856452,6.792,147.24,147.21,28.7]
[1746620857045,6.792,147.24,147.21,35.4933]
[1746620857251,6.792,147.24,147.21,28.7]
[1746620858257,6.7918,147.25,147.21,35.4932]
[1746620858448,6.2616,147.31,147.21,35.4932]
[1746620858649,6.2616,147.31,147.21,28.7]
[1746620858951,6.7919,147.24,147.21,28.7]
[1746620859155,13.17277103,147.29,147.18,30.819]
[1746620859344,28.78,147.28,147.18,28.78]
[1746620859548,6.7931,147.22,147.18,35.5746]
[1746620859755,28.78,147.28,147.18,28.78]
[1746620861054,6.794,147.2,147.18,28.78]
[1746620861455,28.78,147.28,147.18,28.78]
[1746620861656,6.7937,147.21,147.18,35.5747]
[1746620861854,28.78,147.28,147.18,28.78]
[1746620862355,6.7939,147.2,147.18,28.78]
[1746620862651,28.78,147.28,147.18,28.78]
[1746620862955,28.78,147.28,147.18,35.5744]
[1746620863554,28.78,147.28,147.19,6.7942]
[1746620865156,6.7936,147.21,147.18,35.5745]
[1746620866558,6.794,147.2,147.18,35.5745]
[1746620866753,6.794,147.2,147.18,28.78]
[1746620866960,13.17277103,147.26,147.18,28.78]
[1746620867158,6.7942,147.2,147.18,28.78]
[1746620867355,6.3423,147.25,147.18,28.78]
[1746620868357,6.7942,147.19,147.18,28.78]
[1746620868749,28.78,147.24,147.18,28.78]
[1746620869155,28.78,147.24,147.19,6.7942]
[1746620869354,6.7932,147.22,147.19,6.7942]
[1746620869556,6.3423,147.25,147.18,28.78]
[1746620869962,6.7938,147.2,147.18,35.5747]
[1746620870259,6.7938,147.2,147.18,28.78]
[1746620871166,6.7942,147.19,147.18,28.78]
[1746620871362,6.3423,147.25,147.18,28.78]
[1746620871962,6.7936,147.21,147.18,35.5744]
[1746620872261,6.3423,147.25,147.18,35.5744]
[1746620872458,6.3423,147.25,147.19,6.7942]
[1746620873061,6.7933,147.21,147.18,35.5745]
[1746620873564,6.7933,147.21,147.19,6.7941]
[1746620873961,6.7933,147.21,147.18,28.78]
[1746620874261,6.7933,147.21,147.18,35.5744]
[1746620877563,6.7938,147.2,147.18,28.78]
[1746620877765,6.3423,147.25,147.18,28.78]
[1746620878262,6.794,147.2,147.18,28.78]
[1746620878962,6.7935,147.21,147.18,35.5747]
[1746620879168,6.7935,147.21,147.18,28.78]
[1746620879362,6.3423,147.25,147.18,28.78]
[1746620879561,4.2259,147.25,147.18,28.78]
[1746620879961,6.7927,147.23,147.2,6.7937]
[1746620880168,28.8,147.27,147.18,28.78]
[1746620880667,28.8,147.27,147.21,6.7931]
[1746620881071,6.7922,147.24,147.21,6.7931]
[1746620883668,28.8,147.27,147.18,28.78]
[1746620885872,6.7918,147.25,147.22,6.7928]
[1746620886067,33.3687,147.3,147.22,29.14]
[1746620886765,6.7923,147.24,147.22,29.14]
[1746620888372,6.7924,147.23,147.22,29.14]
[1746620888576,13.17277103,147.29,147.19,29.14]
[1746620888967,6.7933,147.22,147.19,35.934]
[1746620890673,13.5805,147.28,147.19,35.934]
[1746620890674,6.7924,147.23,147.19,35.934]
[1746620891075,6.7924,147.23,147.2,6.7937]
[1746620891967,6.791,147.26,147.22,6.7928]
[1746620892173,13.17277103,147.29,147.22,6.7928]
[1746620893077,6.7916,147.25,147.22,6.7928]
[1746620893280,33.3687,147.3,147.19,29.14]
[1746620893673,6.7908,147.27,147.19,29.14]
[1746620893877,6.7908,147.27,147.24,6.7916]
[1746620894377,6.7908,147.27,147.22,6.7925]
[1746620894677,6.7908,147.27,147.19,29.14]
[1746620895279,6.7913,147.26,147.22,6.7926]
[1746620895775,13.5793,147.29,147.19,29.14]
[1746620896367,6.793,147.22,147.19,35.9339]
[1746620897473,6.7934,147.21,147.19,29.14]
[1746620898772,6.7938,147.2,147.19,29.14]
[1746620906079,13.17277103,147.26,147.14,29.14]
[1746620906275,13.17277103,147.23,147.11,39.24359202]
[1746620906472,42.31277103,147.23,147.11,46.04119202]
[1746620906676,42.31277103,147.23,147.11,63.29936809]
[1746620907283,42.31277103,147.23,147.11,61.21436809]
[1746620907472,13.17277103,147.2,147.11,61.21436809]
[1746620907677,35.3711,147.19,147.11,61.21436809]
[1746620908185,48.9597,147.19,147.11,61.21436809]
[1746620908781,6.7974,147.13,147.11,61.21436809]
[1746620908980,35.3711,147.19,147.11,61.21436809]
[1746620909579,6.7964,147.15,147.11,68.01206809]
[1746620909783,6.7964,147.15,147.11,35.9377]
[1746620910777,6.7958,147.16,147.11,29.14]
[1746620910984,29.16,147.22,147.11,29.14]
[1746620911284,6.7947,147.18,147.15,6.7958]
[1746620911487,6.7947,147.18,147.15,35.9558]
[1746620912392,6.7947,147.18,147.15,29.16]
[1746620912783,6.7953,147.17,147.15,29.16]
[1746620916281,6.7956,147.16,147.15,29.16]
[1746620917588,6.7953,147.17,147.15,29.16]
[1746620917793,4.1341,147.22,147.15,29.16]
[1746620917991,2.1447,147.22,147.15,29.16]
[1746620918889,6.7945,147.19,147.16,6.7955]
[1746620920089,6.7945,147.19,147.15,35.9559]
[1746620920288,6.7948,147.18,147.15,35.9559]
[1746620922184,2.1447,147.22,147.15,29.16]
[1746620922689,6.7956,147.16,147.15,29.16]
[1746620923191,6.7954,147.17,147.15,29.16]
[1746620926491,6.7956,147.16,147.15,29.16]
[1746620932698,6.7955,147.17,147.15,29.16]
[1746620933202,2.046,147.23,147.15,29.16]
[1746620933800,6.7946,147.19,147.15,35.9558]
[1746620933998,2.046,147.23,147.15,35.9558]
[1746620934500,2.046,147.23,147.15,29.16]
[1746620935000,6.7956,147.16,147.15,29.16]
[1746620937803,6.7954,147.17,147.15,29.16]
[1746620938104,2.046,147.23,147.15,29.16]
[1746620938294,6.7952,147.17,147.15,29.16]
[1746620939000,6.7956,147.16,147.15,29.16]
[1746620946108,6.7974,147.13,147.12,29.3]
[1746620950917,6.7979,147.12,147.09,36.1187]
[1746620951613,6.798,147.11,147.09,29.32]
[1746620952416,6.7973,147.13,147.09,29.32]
[1746620953021,6.7973,147.13,147.1,6.798]
[1746620954819,6.7976,147.12,147.09,29.32]
[1746620955020,4.0966,147.15,147.09,29.32]
[1746620955620,6.7972,147.13,147.1,6.7981]
[1746620957326,6.7967,147.14,147.11,6.7979]
[1746620957627,2.1898,147.16,147.09,29.32]
[1746620958431,6.7961,147.15,147.12,6.7972]
[1746620958732,2.1898,147.16,147.09,29.32]
[1746620959027,6.7973,147.13,147.1,6.7982]
[1746620962736,6.7975,147.12,147.1,6.7982]
[1746620964234,6.797,147.13,147.1,6.7982]
[1746620964933,6.797,147.13,147.11,6.7979]
[1746620965335,2.1898,147.16,147.11,6.7979]
[1746620965336,6.7968,147.14,147.11,6.7979]
[1746620969137,6.7968,147.14,147.1,6.7981]
[1746620969337,2.1898,147.16,147.1,6.7981]
[1746620969839,6.7973,147.13,147.1,6.7981]
[1746620970539,2.1898,147.16,147.09,29.32]
[1746620971540,6.7982,147.11,147.09,29.32]
[1746620972241,6.7977,147.12,147.09,29.32]
[1746620973139,6.798,147.11,147.09,29.32]
[1746620973329,2.1898,147.16,147.09,29.32]
[1746620974239,2.1898,147.16,147.09,36.1188]
[1746620974741,6.7976,147.12,147.09,36.1188]
[1746620975043,6.7976,147.12,147.09,29.32]
[1746620975638,6.7982,147.11,147.09,29.32]
[1746620976143,2.1898,147.16,147.09,29.32]
[1746620976343,6.7984,147.1,147.09,29.32]
[1746620988753,6.7981,147.11,147.09,29.32]
[1746620988954,2.0827,147.15,147.09,29.32]
[1746620989253,6.7977,147.12,147.09,29.32]
[1746620990354,6.798,147.11,147.09,29.32]
[1746620992356,6.7984,147.1,147.09,29.32]
[1746620994151,4.1409,147.15,147.09,29.32]
[1746620994756,6.798,147.11,147.09,29.32]
[1746620994956,4.1409,147.15,147.09,29.32]
[1746620995954,6.7972,147.13,147.1,6.7981]
[1746620996961,6.7972,147.13,147.11,6.7979]
[1746620997660,6.7968,147.14,147.11,6.7979]
[1746620998962,6.7963,147.15,147.11,6.7979]
[1746620999962,6.7966,147.14,147.11,6.7979]
[1746621000151,6.7966,147.14,147.09,29.32]
[1746621000354,2.1898,147.16,147.09,29.32]
[1746621000665,4.1461,147.19,147.1,5.09435974]
[1746621001164,6.7959,147.16,147.09,29.32]
[1746621001863,6.7959,147.16,147.12,6.7971]
[1746621002062,6.7959,147.16,147.13,29.16]
[1746621002263,4.1461,147.19,147.13,29.16]
[1746621003464,6.7965,147.15,147.13,29.16]
[1746621003766,4.1461,147.19,147.13,29.16]
[1746621004268,6.7965,147.14,147.13,29.16]
[1746621004470,4.1461,147.19,147.13,29.16]
[1746621005658,6.7965,147.15,147.13,29.16]
[1746621006061,4.1461,147.19,147.13,29.16]
[1746621006262,4.1461,147.19,147.13,35.9569]
[1746621006460,4.1461,147.19,147.13,29.16]
[1746621007067,6.7959,147.16,147.14,6.7964]
[1746621007767,5.09435974,147.18,147.1,28.92]
[1746621008165,6.7968,147.14,147.11,6.7978]
[1746621008860,4.1461,147.19,147.1,28.92]
[1746621009066,6.7963,147.15,147.12,6.7972]
[1746621009566,4.1461,147.19,147.12,6.7972]
[1746621010468,4.1461,147.19,147.11,6.7976]
[1746621010766,4.1461,147.19,147.1,28.92]
[1746621011069,4.1461,147.19,147.12,6.7974]
[1746621011268,4.1461,147.19,147.1,28.92]
[1746621011768,6.7964,147.15,147.12,6.7971]
[1746621011967,6.7964,147.15,147.1,28.92]
[1746621012666,6.7964,147.15,147.12,6.7973]
[1746621012874,6.7959,147.16,147.1,28.92]
[1746621013265,4.1461,147.19,147.13,6.7967]
[1746621013972,4.1461,147.19,147.1,28.92]
[1746621014569,6.795,147.18,147.15,6.7959]
[1746621014769,4.1461,147.19,147.14,28.92]
[1746621015070,6.7957,147.16,147.15,28.92]
[1746621016672,6.7953,147.17,147.15,28.92]
[1746621016972,4.1461,147.19,147.15,28.92]
[1746621017173,6.7956,147.16,147.15,28.92]
[1746621017361,4.1461,147.19,147.12,35.7173]
[1746621017673,6.7963,147.15,147.12,35.7173]
[1746621018279,6.7958,147.16,147.13,6.797]
[1746621018774,6.7955,147.17,147.14,6.7963]
[1746621019273,4.1461,147.19,147.14,6.7963]
[1746621020374,6.7959,147.16,147.14,6.7963]
[1746621021578,4.1461,147.19,147.12,28.92]
[1746621022278,6.7968,147.14,147.12,35.7172]
[1746621023986,6.7968,147.14,147.12,28.92]
[1746621024282,6.7962,147.15,147.12,28.92]
[1746621024678,6.7962,147.15,147.12,35.7173]
[1746621025883,4.1461,147.19,147.12,28.92]
[1746621026486,6.797,147.13,147.12,28.92]
[1746621030589,6.7981,147.11,147.09,35.7187]
[1746621031792,6.7984,147.1,147.09,28.92]
[1746621033387,6.7981,147.11,147.09,28.92]
[1746621033688,2.1174,147.15,147.09,28.92]
[1746621034085,6.7984,147.1,147.09,28.92]
[1746621034683,6.7981,147.11,147.09,28.92]
[1746621035087,4.0937,147.14,147.09,28.92]
[1746621035789,6.7984,147.1,147.09,28.92]
[1746621036793,6.7997,147.08,147.06,28.8]
[1746621037492,6.799,147.09,147.06,28.8]
[1746621037889,6.799,147.09,147.06,35.6]
[1746621038994,6.7994,147.08,147.06,28.8]
[1746621039294,4.0937,147.14,147.06,28.8]
[1746621039692,6.7991,147.09,147.06,28.8]
[1746621040095,6.7991,147.09,147.06,35.5999]
[1746621040790,4.0937,147.14,147.06,28.8]
[1746621040996,6.7995,147.08,147.06,28.8]
[1746621041295,4.0937,147.14,147.06,28.8]
[1746621041492,6.7996,147.08,147.06,28.8]
[1746621041795,4.0937,147.14,147.06,35.6002]
[1746621042095,6.7991,147.09,147.06,35.6002]
[1746621042297,4.0937,147.14,147.06,28.8]
[1746621043195,6.7991,147.09,147.06,28.8]
[1746621043497,6.7991,147.09,147.06,35.6]
[1746621044895,6.7994,147.08,147.06,35.6]
[1746621045199,6.7994,147.08,147.06,28.8]
[1746621045400,6.7998,147.07,147.06,28.8]
[1746621047506,4.0937,147.14,147.06,35.6002]
[1746621048203,6.7995,147.08,147.06,35.6002]
[1746621049402,6.7998,147.07,147.06,28.8]
[1746621049601,17.6871,147.14,147.06,28.8]
[1746621050205,6.7996,147.08,147.06,28.8]
[1746621050395,17.6871,147.14,147.06,28.8]
[1746621050801,17.6871,147.14,147.06,35.6]
[1746621051097,17.6871,147.14,147.06,28.8]
[1746621051911,6.7998,147.07,147.06,28.8]
[1746621053103,33.89435974,147.12,147.03,28.8]
[1746621053309,13.5959,147.11,147.03,28.8]
[1746621053805,6.8012,147.04,147.03,28.8]
[1746621054507,1.987,147.1,147.03,28.8]
[1746621055106,6.7999,147.07,147.05,6.8005]
[1746621055308,1.987,147.1,147.03,28.8]